bitfinex/quotes_SOLUSD_20220228
["timestamp","ask_amount","ask_price","bid_price","bid_amount"]
[1646085849749,1.57376559,97.88,97.785,209.80578888]
[1646085849950,1.57376559,97.88,97.786,2.80468558]
[1646085850150,1.57376559,97.88,97.801,164.53]
[1646085850353,1.57376559,97.88,97.819,102.8]
[1646085850552,1.57376559,97.88,97.832,61.73]
[1646085850755,1.57376559,97.88,97.834,61.73]
[1646085850954,1.57376559,97.88,97.844,61.73]
[1646085851952,1.57376559,97.88,97.849,102.8]
[1646085852155,1.7530404,97.939,97.86,61.73]
[1646085852353,5.71906334,97.949,97.866,61.73]
[1646085852553,5.45867461,97.957,97.868,61.73]
[1646085852754,5.45867461,97.957,97.865,58.81147987]
[1646085852755,1.37367461,97.957,97.874,61.73]
[1646085853353,1.37367461,97.957,97.879,102.8]
[1646085853557,46.8331,97.958,97.886,61.73]
[1646085854354,4.083,97.978,97.89,61.73]
[1646085854553,1.40586015,97.984,97.892,61.73]
[1646085854776,1.40586015,97.984,97.885,45.67967418]
[1646085854777,1.40586015,97.984,97.894,61.73]
[1646085854954,1.40586015,97.984,97.896,61.73]
[1646085855654,1.40586015,97.984,97.904,61.73]
[1646085855853,39.0366,98.0,97.906,61.73]
[1646085855854,5.83188389,97.999,97.906,61.73]
[1646085856054,1.74888389,97.999,97.906,61.73]
[1646085859659,1.74888389,97.999,97.908,61.73]
[1646085860860,39.0366,98.0,97.914,61.73]
[1646085861861,39.0366,98.0,97.909,61.73]
[1646085862060,39.0366,98.0,97.913,164.53]
[1646085862282,39.0366,98.0,97.913,61.73]
[1646085862465,1.71046114,97.999,97.913,61.73]
[1646085862866,1.71046114,97.999,97.913,76.9847]
[1646085865169,14.76,98.0,97.913,179.7847]
[1646085866069,14.76,98.02,97.915,61.73]
[1646085866269,1.46897258,98.019,97.915,61.73]
[1646085866472,4.79634986,98.019,97.915,61.73]
[1646085866770,1.46897258,98.019,97.925,61.73]
[1646085866969,1.46897258,98.019,97.933,164.53]
[1646085868170,1.46897258,98.019,97.927,61.73]
[1646085871388,1.46897258,98.019,97.933,164.53]
[1646085872388,14.76,98.02,97.933,164.53]
[1646085872792,22.5002,98.028,97.934,2.87338122]
[1646085873188,1.50646503,98.033,97.934,2.87338122]
[1646085873389,1.76111154,98.054,97.941,164.53]
[1646085873589,1.76111154,98.054,97.945,164.53]
[1646085873789,1.76111154,98.054,97.946,2.9783999]
[1646085874690,1.86695342,98.054,97.946,2.9783999]
[1646085874890,1.86695342,98.054,97.947,2.74678921]
[1646085875090,1.86695342,98.054,97.948,166.84933894]
[1646085875289,1.86695342,98.054,97.949,2.70983149]
[1646085875490,1.86695342,98.054,97.951,2.29559951]
[1646085876290,24.3491,98.057,97.951,2.29559951]
[1646085876492,24.3491,98.057,97.952,2.74678921]
[1646085876690,1.43927066,98.056,97.952,2.74678921]
[1646085878194,24.3491,98.057,97.953,164.53]
[1646085878394,24.3491,98.057,97.954,2.39644655]
[1646085878595,24.3491,98.057,97.96,61.73]
[1646085878795,24.3491,98.057,97.973,102.8]
[1646085878994,24.3491,98.057,97.974,86.085]
[1646085879398,24.3491,98.057,97.982,61.73]
[1646085879595,24.3491,98.057,97.984,61.73]
[1646085880197,14.76,98.06,97.984,61.73]
[1646085882498,14.76,98.06,97.986,61.73]
[1646085882697,14.76,98.06,97.992,164.53]
[1646085883198,22.6516,98.07,97.992,61.73]
[1646085883799,22.6516,98.07,97.984,61.73]
[1646085883999,22.6516,98.07,97.983,45.90415634]
[1646085884000,22.6516,98.07,97.992,61.73]
[1646085884601,22.6516,98.07,97.983,45.90415634]
[1646085884602,1.6654827,98.069,97.994,61.73]
[1646085885201,22.6516,98.07,97.994,61.73]
[1646085886099,1.69071791,98.069,97.994,61.73]
[1646085887004,22.6516,98.07,98.002,164.53]
[1646085887206,22.6516,98.07,98.004,61.73]
[1646085889006,24.4466,98.085,98.012,164.53]
[1646085889203,24.4466,98.085,98.012,171.2]
[1646085890605,24.8188,98.093,98.012,171.2]
[1646085890806,24.8188,98.093,98.013,2.57521146]
[1646085891006,24.8188,98.093,98.014,164.53]
[1646085891206,23.085,98.118,98.015,3.05752532]
[1646085891413,23.085,98.118,98.021,164.53]
[1646085891607,23.085,98.118,98.023,164.53]
[1646085891807,23.085,98.118,98.024,2.55223922]
[1646085892008,23.085,98.118,98.026,164.53]
[1646085892510,25.79982586,98.137,98.027,2.41214234]
[1646085892706,25.79982586,98.137,98.029,2.27896078]
[1646085893307,1.73271568,98.136,98.031,164.53]
[1646085895111,1.73271568,98.136,98.029,15.3832]
[1646085895112,24.188,98.137,98.034,2.61898091]
[1646085895910,24.188,98.137,98.035,164.53]
[1646085896117,24.188,98.137,98.036,2.32697032]
[1646085896309,24.188,98.137,98.04,14.76]
[1646085896510,24.188,98.137,98.042,2.57860491]
[1646085896911,24.188,98.137,98.043,2.74678921]
[1646085898512,24.188,98.137,98.041,86.5226]
[1646085899516,1.77397384,98.136,98.041,86.5226]
[1646085899714,1.77397384,98.136,98.037,58.2636851]
[1646085899914,14.76,98.13,98.037,58.2636851]
[1646085900115,1.78541776,98.129,98.037,58.2636851]
[1646085900317,13.55171682,98.129,98.037,58.2636851]
[1646085900517,6.76024417,98.128,98.037,58.2636851]
[1646085900716,6.76024417,98.128,98.004,61.73]
[1646085900916,1.40951632,98.126,98.004,61.73]
[1646085901317,11.76629906,98.125,98.004,61.73]
[1646085901516,1.48057917,98.124,98.004,61.73]
[1646085901717,14.76,98.11,98.029,56.97113883]
[1646085902218,1.44700726,98.109,98.029,56.97113883]
[1646085903718,0.94700726,98.109,98.029,56.97113883]
[1646085903919,14.76,98.11,98.03,61.73]
[1646085904121,14.76,98.11,98.032,61.73]
[1646085904318,14.76,98.11,98.033,3.06602186]
[1646085904721,14.26,98.11,98.034,61.73]
[1646085905327,14.26,98.11,98.038,61.73]
[1646085905520,14.26,98.11,98.042,61.73]
[1646085905923,23.461,98.125,98.043,2.9912846]
[1646085906121,23.461,98.125,98.045,61.73]
[1646085906321,23.461,98.125,98.046,2.4348486]
[1646085906823,23.461,98.125,98.052,61.73]
[1646085907422,22.961,98.125,98.052,61.73]
[1646085907824,22.961,98.125,98.048,61.73]
[1646085909824,22.961,98.125,98.045,61.73]
[1646085910024,14.76,98.11,98.045,61.73]
[1646085910225,14.76,98.11,98.044,54.47849838]
[1646085910427,1.86208637,98.109,98.044,54.47849838]
[1646085911746,1.86208637,98.109,98.044,116.20849838]
[1646085911946,14.76,98.11,98.044,116.20849838]
[1646085913150,1.4357599,98.109,98.044,54.47849838]
[1646085913353,14.76,98.11,98.044,116.20849838]
[1646085914951,22.961,98.125,98.044,116.20849838]
[1646085915156,22.961,98.125,98.046,61.73]
[1646085915754,1.68568205,98.124,98.046,61.73]
[1646085917756,14.76,98.12,98.045,23.5305]
[1646085917956,104.348236,98.119,98.012,4.078]
[1646085918159,184.48,98.11,97.996,22.8424]
[1646085918455,14.76,98.1,97.996,22.8424]
[1646085918655,1.46355532,98.098,97.996,22.8424]
[1646085918854,1.46355532,98.098,97.997,56.61370703]
[1646085919255,1.42645477,98.089,97.997,52.53570703]
[1646085919655,1.5626947,98.079,97.997,52.53570703]
[1646085920659,1.62579968,98.077,97.997,52.53570703]
[1646085920855,1.62579968,98.077,97.967,4.08]
[1646085921057,4.08,98.076,97.967,61.73]
[1646085921357,1.62579968,98.077,97.967,61.73]
[1646085921961,15.84629906,98.076,97.968,51.26102681]
[1646085922159,1.5262202,98.075,97.968,51.26102681]
[1646085922364,4.08,98.074,97.968,51.26102681]
[1646085922561,14.76,98.06,97.968,51.26102681]
[1646085922964,1.6226749,98.059,97.968,51.26102681]
[1646085924871,14.76,98.06,97.969,64.29150711]
[1646085925068,14.76,98.06,97.97,2.51935675]
[1646085925268,14.76,98.06,97.971,61.73]
[1646085925467,14.76,98.06,97.972,2.52734655]
[1646085928172,14.76,98.06,97.982,61.73]
[1646085928369,14.76,98.06,97.981,102.8]
[1646085928370,14.76,98.06,97.984,61.73]
[1646085928568,14.76,98.06,97.985,3.09754925]
[1646085930471,23.4218,98.073,97.985,3.09754925]
[1646085930674,23.4218,98.073,97.987,61.73]
[1646085930871,23.4218,98.073,97.988,2.47222672]
[1646085931475,23.4218,98.073,97.986,23.0288]
[1646085931476,14.76,98.07,97.991,164.53]
[1646085931672,14.76,98.07,97.993,61.73]
[1646085931873,14.76,98.07,97.994,3.11457491]
[1646085932774,14.76,98.07,97.988,61.73]
[1646085932775,14.76,98.07,97.992,61.73]
[1646085932973,14.76,98.07,97.993,2.82191399]
[1646085933177,14.76,98.07,97.994,4.08]
[1646085933375,14.76,98.07,98.002,61.73]
[1646085933576,14.76,98.09,98.004,61.73]
[1646085933875,23.1684,98.109,98.003,53.62561647]
[1646085933876,14.76,98.1,98.007,2.90123009]
[1646085934075,14.76,98.1,98.006,61.73]
[1646085934076,1.741277,98.099,98.006,61.73]
[1646085934677,14.76,98.1,98.007,2.98028955]
[1646085935278,14.76,98.1,98.009,3.06874764]
[1646085937294,14.76,98.1,98.012,61.73]
[1646085937499,14.76,98.1,98.011,102.8]
[1646085937500,46.2013,98.109,98.022,61.73]
[1646085937698,46.2013,98.109,98.024,61.73]
[1646085938001,46.2013,98.109,98.033,2.5014072]
[1646085938204,14.76,98.13,98.033,2.5014072]
[1646085938403,23.4482,98.129,98.044,61.73]
[1646085938903,20.59793051,98.128,98.045,2.78346732]
[1646085939304,20.59793051,98.128,98.043,52.80044322]
[1646085939305,20.59793051,98.128,98.048,2.41690328]
[1646085940506,20.09793051,98.128,98.048,2.41690328]
[1646085946513,20.09793051,98.128,98.047,61.73]
[1646085947516,20.09793051,98.128,98.048,3.06722182]
[1646085947716,20.09793051,98.128,98.047,61.73]
[1646085948218,20.09793051,98.128,98.048,2.72893072]
[1646085949621,20.09793051,98.128,98.051,61.53]
[1646085949819,20.09793051,98.128,98.052,2.7211897]
[1646085950220,14.76,98.13,98.052,2.7211897]
[1646085950619,14.76,98.13,98.061,61.53]
[1646085950823,14.76,98.13,98.063,61.53]
[1646085951120,14.76,98.13,98.064,2.27756022]
[1646085951324,14.76,98.15,98.065,61.53]
[1646085951520,24.4967,98.157,98.072,2.92942801]
[1646085952520,24.4967,98.157,98.073,2.95680424]
[1646085953521,24.4967,98.157,98.074,3.09007799]
[1646085953722,2.04422349,98.181,98.074,3.09007799]
[1646085953723,14.76,98.18,98.081,61.53]
[1646085953924,50.72482077,98.187,98.091,61.53]
[1646085954122,50.72482077,98.187,98.092,2.85634344]
[1646085954724,23.3367,98.187,98.092,2.85634344]
[1646085954924,23.3367,98.187,98.092,64.38634344]
[1646085955125,23.3367,98.187,98.093,2.41713135]
[1646085955424,23.3367,98.187,98.102,61.53]
[1646085955623,23.3367,98.187,98.106,61.53]
[1646085955823,14.76,98.2,98.122,61.53]
[1646085956044,14.76,98.2,98.121,102.8]
[1646085956045,14.76,98.2,98.124,61.53]
[1646085956427,14.76,98.2,98.125,3.01618259]
[1646085957826,14.76,98.2,98.132,61.53]
[1646085958026,14.76,98.2,98.133,2.81838065]
[1646085959033,22.7343,98.212,98.135,102.8]
[1646085959230,22.7343,98.212,98.142,61.53]
[1646085959428,22.7343,98.212,98.141,102.8]
[1646085959429,14.76,98.22,98.144,61.53]
[1646085959631,14.76,98.22,98.145,2.94280032]
[1646085962334,46.831,98.248,98.148,61.53]
[1646085962536,14.76,98.23,98.162,61.53]
[1646085962735,46.831,98.248,98.164,61.53]
[1646085963035,46.831,98.248,98.165,3.03561265]
[1646085963235,14.76,98.25,98.172,61.53]
[1646085963551,14.76,98.25,98.173,2.6495031]
[1646085964052,14.76,98.25,98.174,4.072]
[1646085964451,14.76,98.25,98.175,61.53]
[1646085964652,14.76,98.25,98.176,2.59683545]
[1646085964854,14.76,98.25,98.177,61.53]
[1646085965053,14.76,98.25,98.179,61.53]
[1646085965254,14.76,98.25,98.18,2.34253275]
[1646085965557,14.76,98.25,98.179,61.53]
[1646085966353,14.76,98.25,98.179,15.2435]
[1646085966554,1.48491183,98.249,98.179,15.2435]
[1646085967154,14.76,98.25,98.18,61.73]
[1646085967553,1.44237261,98.262,98.18,61.73]
[1646085968154,14.76,98.25,98.18,61.73]
[1646085968555,14.76,98.25,98.179,15.2435]
[1646085968756,1.60516733,98.249,98.179,15.2435]
[1646085969455,1.60516733,98.249,98.18,61.73]
[1646085969655,14.76,98.25,98.18,61.73]
[1646085970356,1.84251544,98.249,98.179,15.2435]
[1646085970557,14.76,98.25,98.179,15.2435]
[1646085971862,1.85444859,98.249,98.179,15.2435]
[1646085972459,14.76,98.25,98.179,15.2435]
[1646085972858,14.76,98.25,98.18,61.73]
[1646085973658,14.76,98.25,98.179,15.2435]
[1646085980669,14.76,98.25,98.18,61.73]
[1646085983170,14.76,98.25,98.18,164.53]
[1646085983470,14.76,98.28,98.181,2.48480695]
[1646085983671,14.76,98.29,98.181,2.48480695]
[1646085984071,24.3032,98.289,98.181,2.48480695]
[1646085985774,4.07,98.309,98.191,164.53]
[1646085986074,4.07,98.364,98.195,164.53]
[1646085986273,22.6527,98.374,98.202,164.53]
[1646085986474,22.6527,98.374,98.211,169.53]
[1646085986672,22.6527,98.374,98.213,164.53]
[1646085986875,22.6527,98.374,98.221,164.53]
[1646085987079,22.1527,98.374,98.231,164.53]
[1646085987275,22.1527,98.374,98.233,164.53]
[1646085987477,23.81925984,98.374,98.234,2.36234024]
[1646085987675,23.81925984,98.374,98.235,164.53]
[1646085987876,23.81925984,98.374,98.236,2.76088319]
[1646085988076,23.81925984,98.374,98.237,164.53]
[1646085988276,23.81925984,98.374,98.253,164.53]
[1646085988476,23.81925984,98.374,98.256,2.9665051]
[1646085988877,22.1527,98.374,98.257,30.52422786]
[1646085989078,22.1527,98.374,98.259,2.3638488]
[1646085989479,22.1527,98.374,98.261,164.53]
[1646085989798,22.1527,98.374,98.262,2.96882085]
[1646085989979,22.1527,98.374,98.264,2.90904514]
[1646085990380,22.1527,98.374,98.266,61.73]
[1646085990580,14.76,98.36,98.268,61.73]
[1646085990779,1.71649208,98.359,98.268,61.73]
[1646085993882,1.37227135,98.359,98.268,61.73]
[1646085995284,5.43927135,98.359,98.268,61.73]
[1646085995984,1.37227135,98.359,98.267,58.27055658]
[1646085996884,1.50757499,98.356,98.267,58.27055658]
[1646085997085,104.31477622,98.339,98.267,58.27055658]
[1646085997308,1.59001931,98.329,98.267,58.27055658]
[1646085997885,1.59001931,98.329,98.237,6.52]
[1646085998287,104.39001931,98.329,98.237,6.52]
[1646085998486,1.79635042,98.328,98.237,6.52]
[1646085998886,4.069,98.327,98.238,45.00049541]
[1646085999089,107.97849263,98.327,98.238,45.00049541]
[1646085999289,1.80327208,98.326,98.238,45.00049541]
[1646085999489,184.48,98.32,98.238,45.00049541]
[1646085999692,14.76,98.31,98.238,45.00049541]
[1646085999890,1.56745069,98.309,98.238,45.00049541]
[1646086000690,5.63745069,98.309,98.238,45.00049541]
[1646086000889,1.56745069,98.309,98.238,45.00049541]
[1646086001492,104.36745069,98.309,98.198,61.73]
[1646086001690,1.65019352,98.308,98.173,15.4157]
[1646086001894,1.52599455,98.279,98.157,47.7039]
[1646086002192,14.76,98.27,98.164,61.73]
[1646086002390,1.6681666,98.269,98.164,61.73]
[1646086002593,32.22185983,98.269,98.166,58.3088863]
[1646086002790,1.78711181,98.268,98.166,58.3088863]
[1646086002991,102.8,98.267,98.166,58.3088863]
[1646086003190,1.76438631,98.266,98.166,58.3088863]
[1646086003593,8.99565255,98.265,98.166,58.3088863]
[1646086004290,24.13496033,98.264,98.166,58.3088863]
[1646086004490,14.76,98.25,98.166,58.3088863]
[1646086005099,1.63363484,98.249,98.166,58.3088863]
[1646086006309,14.76,98.25,98.167,64.30721748]
[1646086006709,14.76,98.25,98.166,58.3088863]
[1646086006710,1.61171883,98.249,98.166,58.3088863]
[1646086006909,14.76,98.25,98.166,58.3088863]
[1646086007412,14.76,98.25,98.168,2.4473175]
[1646086008010,14.76,98.25,98.167,61.73]
[1646086008211,14.76,98.25,98.168,2.678389]
[1646086009010,14.76,98.25,98.167,61.73]
[1646086010410,14.76,98.25,98.168,2.97708336]
[1646086010811,14.76,98.25,98.167,61.73]
[1646086011212,14.76,98.25,98.168,2.7961936]
[1646086013215,14.26,98.25,98.168,2.7961936]
[1646086019822,14.26,98.25,98.17,61.73]
[1646086020024,14.26,98.25,98.171,2.92988659]
[1646086025534,14.76,98.27,98.171,2.92988659]
[1646086026134,14.76,98.27,98.18,61.73]
[1646086026333,14.76,98.27,98.198,61.73]
[1646086026533,14.76,98.27,98.201,2.99505576]
[1646086026733,24.4778,98.302,98.203,61.73]
[1646086026935,14.76,98.29,98.206,2.54289254]
[1646086030439,14.76,98.29,98.207,4.07]
[1646086031939,14.76,98.29,98.209,61.73]
[1646086032139,14.76,98.29,98.215,61.73]
[1646086032339,24.0,98.319,98.219,164.53]
[1646086032544,24.0,98.319,98.221,61.73]
[1646086032745,14.76,98.32,98.222,2.91038084]
[1646086032941,14.76,98.32,98.223,4.07]
[1646086033541,14.76,98.32,98.233,61.73]
[1646086033741,14.76,98.32,98.235,61.73]
[1646086033946,14.76,98.32,98.237,61.73]
[1646086034141,14.76,98.32,98.238,2.37368871]
[1646086037846,23.0008,98.344,98.238,2.37368871]
[1646086037847,14.76,98.34,98.238,2.37368871]
[1646086038047,14.76,98.34,98.252,102.8]
[1646086038250,14.76,98.34,98.263,61.73]
[1646086038448,21.44105312,98.378,98.264,3.05905734]
[1646086038668,14.76,98.36,98.267,2.70290422]
[1646086040371,14.76,98.36,98.27,61.73]
[1646086040570,14.76,98.36,98.271,2.65419671]
[1646086043172,23.6838,98.377,98.271,2.65419671]
[1646086043374,23.6838,98.377,98.274,2.89129034]
[1646086046278,23.6838,98.377,98.277,61.73]
[1646086046479,23.6838,98.377,98.281,61.73]
[1646086046679,23.6838,98.377,98.282,2.608196]
[1646086047178,23.6838,98.377,98.285,2.85605942]
[1646086047378,1.6714273,98.387,98.285,2.85605942]
[1646086047578,58.4342637,98.41,98.289,61.73]
[1646086047779,15.4244,98.413,98.29,2.84637528]
[1646086047980,15.4816,98.423,98.291,61.73]
[1646086048180,15.226,98.465,98.301,164.53]
[1646086048382,15.0217,98.515,98.311,164.53]
[1646086048581,15.0217,98.515,98.343,61.73]
[1646086048782,3.564,98.514,98.391,61.73]
[1646086048982,3.564,98.514,98.392,2.72356064]
[1646086049182,4.062,98.528,98.401,61.73]
[1646086049385,4.062,98.528,98.403,61.73]
[1646086049579,15.0763,98.568,98.404,105.25336665]
[1646086049580,4.062,98.522,98.404,105.25336665]
[1646086049780,48.74918183,98.521,98.407,61.73]
[1646086049996,52.81118183,98.521,98.42,14.76]
[1646086050183,52.81118183,98.521,98.408,2.94831396]
[1646086050480,39.1675178,98.52,98.408,2.71756368]
[1646086050780,31.3485462,98.519,98.408,2.71756368]
[1646086050983,42.95488958,98.519,98.403,2.26551541]
[1646086051180,27.2865462,98.518,98.382,2.74678921]
[1646086051381,5.50123758,98.517,98.382,2.74678921]
[1646086051581,1.43923758,98.517,98.38,14.76]
[1646086051785,11.8809716,98.517,98.381,112.512499]
[1646086051980,11.60634338,98.516,98.383,61.73]
[1646086052183,15.66834338,98.516,98.384,2.61271176]
[1646086052381,11.60634338,98.516,98.385,61.73]
[1646086052582,11.60634338,98.516,98.386,2.50167991]
[1646086052782,11.60634338,98.516,98.401,61.73]
[1646086052984,4.062,98.519,98.402,3.06195326]
[1646086053182,48.74918183,98.521,98.402,3.06195326]
[1646086053383,48.74918183,98.521,98.404,2.78808629]
[1646086053585,4.062,98.518,98.404,2.78808629]
[1646086053782,4.062,98.518,98.405,2.74678921]
[1646086053987,4.062,98.52,98.42,14.76]
[1646086054184,48.74918183,98.521,98.42,14.76]
[1646086054382,48.74918183,98.521,98.421,2.80036972]
[1646086054785,11.60634338,98.52,98.421,2.80036972]
[1646086054984,23.48731498,98.52,98.421,2.80036972]
[1646086055385,1.81050963,98.519,98.421,2.80036972]
[1646086055587,23.48731498,98.52,98.421,2.80036972]
[1646086055787,23.22910996,98.518,98.421,2.75584036]
[1646086055986,23.22910996,98.518,98.36,196.7917246]
[1646086055987,1.87211522,98.517,98.402,2.64422835]
[1646086056188,1.87211522,98.517,98.382,2.48238422]
[1646086056189,4.062,98.516,98.382,2.48238422]
[1646086056386,1.7724088,98.515,98.382,2.48238422]
[1646086056587,4.062,98.514,98.382,2.48238422]
[1646086056786,14.76,98.5,98.382,2.48238422]
[1646086056987,54.84618238,98.499,98.382,2.48238422]
[1646086057186,1.48285732,98.498,98.382,2.48238422]
[1646086057386,88.56447697,98.499,98.383,2.37196315]
[1646086057387,65.33536701,98.499,98.383,2.37196315]
[1646086057587,53.45439541,98.499,98.383,5.11875236]
[1646086057786,53.45439541,98.499,98.383,2.37196315]
[1646086058186,53.45439541,98.499,98.385,61.73]
[1646086058389,53.45439541,98.499,98.4,14.76]
[1646086058587,53.45439541,98.499,98.401,64.13250744]
[1646086058889,53.45439541,98.499,98.402,2.80430228]
[1646086059688,53.45439541,98.499,98.403,2.74678921]
[1646086059889,53.45439541,98.499,98.402,2.80430228]
[1646086060289,4.062,98.521,98.403,61.73]
[1646086060489,4.062,98.548,98.407,61.73]
[1646086060689,4.062,98.548,98.421,61.73]
[1646086060889,24.8446,98.566,98.431,61.73]
[1646086060890,4.062,98.565,98.431,61.73]
[1646086061092,4.062,98.565,98.44,14.76]
[1646086061289,4.062,98.565,98.441,61.73]
[1646086061290,59.51151568,98.564,98.441,61.73]
[1646086061496,59.51151568,98.564,98.442,2.8980503]
[1646086061690,23.22910996,98.561,98.443,24.5778]
[1646086061889,1.7077724,98.56,98.444,2.88081138]
[1646086062092,5.7687724,98.56,98.444,2.88081138]
[1646086062289,20.5287724,98.56,98.444,2.88081138]
[1646086062491,1.80009686,98.559,98.444,2.88081138]
[1646086062889,4.061,98.558,98.444,2.88081138]
[1646086063690,14.76,98.56,98.444,2.88081138]
[1646086063891,59.51151568,98.564,98.444,2.88081138]
[1646086064291,59.51151568,98.564,98.445,2.80827236]
[1646086064693,4.061,98.563,98.446,61.73]
[1646086064891,4.061,98.563,98.451,61.73]
[1646086065092,4.061,98.563,98.452,2.32737221]
[1646086065996,59.51151568,98.564,98.452,2.32737221]
[1646086066795,14.76,98.59,98.456,61.73]
[1646086067094,10.54829696,98.684,98.453,125.0]
[1646086067095,14.76,98.63,98.47,14.76]
[1646086067296,15.4501,98.696,98.481,164.53]
[1646086067297,4.059,98.618,98.481,164.53]
[1646086067498,4.059,98.618,98.471,151.58575002]
[1646086067499,4.057,98.665,98.501,165.05]
[1646086067697,4.057,98.665,98.521,61.73]
[1646086067896,4.057,98.659,98.54,184.48]
[1646086068096,4.057,98.674,98.542,2.40831724]
[1646086068395,4.057,98.678,98.552,2.72098786]
[1646086068795,51.06827114,98.677,98.561,61.73]
[1646086069098,51.06827114,98.677,98.571,61.73]
[1646086069297,51.06827114,98.677,98.572,2.89066436]
[1646086069496,5.57837351,98.706,98.572,2.89066436]
[1646086069697,0.05199393,98.719,98.573,61.73]
[1646086069899,4.054,98.705,98.579,61.73]
[1646086070100,4.054,98.705,98.572,6.80078921]
[1646086070101,4.054,98.705,98.603,61.73]
[1646086070305,0.05199393,98.719,98.611,61.73]
[1646086070603,0.05199393,98.719,98.612,2.43864755]
[1646086070998,0.90350714,98.718,98.612,2.43864755]
[1646086071198,58.02472396,98.717,98.612,2.43864755]
[1646086071999,1.79336402,98.716,98.612,2.43864755]
[1646086072199,58.02472396,98.717,98.612,2.43864755]
[1646086072399,58.02472396,98.717,98.613,2.74678921]
[1646086072800,1.69933749,98.716,98.612,2.43864755]
[1646086072998,58.02472396,98.717,98.612,2.43864755]
[1646086073201,1.77059166,98.715,98.612,2.43864755]
[1646086074098,14.76,98.71,98.581,2.50113428]
[1646086074301,1.86553821,98.709,98.58,14.76]
[1646086074698,1.77059166,98.708,98.581,2.96158495]
[1646086074900,4.054,98.707,98.581,2.96158495]
[1646086075503,1.77059166,98.706,98.581,2.96158495]
[1646086075699,4.054,98.705,98.581,2.96158495]
[1646086075900,14.76,98.69,98.561,2.62420252]
[1646086076100,43.09496164,98.688,98.56,14.76]
[1646086076300,5.6868212,98.687,98.543,2.58354552]
[1646086076501,6.59032834,98.687,98.543,2.58354552]
[1646086076904,5.6868212,98.687,98.543,2.58354552]
[1646086077103,2.6740988,98.686,98.543,2.58354552]
[1646086077302,4.056,98.685,98.543,2.58354552]
[1646086077905,2.6740988,98.684,98.543,2.58354552]
[1646086078105,102.8,98.669,98.543,2.58354552]
[1646086078304,163.51168357,98.668,98.526,2.29034469]
[1646086078504,102.8,98.666,98.506,2.33921536]
[1646086078706,1.54508557,98.665,98.506,2.33921536]
[1646086079005,102.8,98.664,98.511,61.73]
[1646086079206,14.76,98.65,98.512,2.8766468]
[1646086079409,45.40601355,98.649,98.513,61.73]
[1646086079606,14.76,98.64,98.514,2.70847199]
[1646086079827,1.41484589,98.639,98.514,2.70847199]
[1646086080006,1.41484589,98.639,98.515,2.74678921]
[1646086080211,14.76,98.64,98.516,4.057]
[1646086080408,14.76,98.64,98.531,61.73]
[1646086080607,14.76,98.64,98.533,61.73]
[1646086080908,45.40601355,98.649,98.535,61.73]
[1646086081109,45.40601355,98.649,98.536,2.73140226]
[1646086081711,104.16278518,98.648,98.531,2.91840361]
[1646086081914,1.8520469,98.647,98.525,6.70295974]
[1646086082312,1.8520469,98.647,98.525,4.057]
[1646086082511,102.8,98.645,98.488,4.057]
[1646086082712,102.8,98.629,98.488,4.057]
[1646086082915,12.17,98.62,98.471,61.73]
[1646086083114,12.17,98.62,98.473,61.73]
[1646086083315,46.97623179,98.629,98.474,2.66714326]
[1646086083512,46.97623179,98.629,98.483,2.43284382]
[1646086083711,46.97623179,98.629,98.49,12.17]
[1646086083911,46.97623179,98.629,98.492,2.44013968]